[Event "*** SCC Grand Prix: Titled Tuesday Blitz"]
[Site "Chess.com"]
[Date "2020.08.11"]
[Round "8"]
[White "dopolian"]
[Black "QuintilianoR"]
[Result "1/2-1/2"]
[WhiteElo "2539"]
[BlackElo "2646"]
[TimeControl "180+1"]
[EndTime "11:35:09 PDT"]
[Termination "Game drawn by repetition"]

1. Nf3 {[%clk 0:03:00.9]} 1... Nf6 {[%clk 0:02:59.8]} 2. c4 {[%clk 0:03:00.8]}
2... e6 {[%clk 0:03:00.1]} 3. b3 {[%clk 0:03:01]} 3... d5 {[%clk 0:02:59.8]} 4.
Bb2 {[%clk 0:03:01.7]} 4... Be7 {[%clk 0:02:58.7]} 5. g3 {[%clk 0:03:00.9]} 5...
O-O {[%clk 0:02:57.9]} 6. Bg2 {[%clk 0:03:01.1]} 6... c5 {[%clk 0:02:57.9]} 7.
cxd5 {[%clk 0:03:01.4]} 7... Nxd5 {[%clk 0:02:55.6]} 8. d4 {[%clk 0:03:02.1]}
8... Nc6 {[%clk 0:02:53.2]} 9. O-O {[%clk 0:03:01.2]} 9... cxd4 {[%clk
0:02:50.6]} 10. Nxd4 {[%clk 0:03:02.1]} 10... Bd7 {[%clk 0:02:50.9]} 11. Nc3
{[%clk 0:02:57.7]} 11... Nxc3 {[%clk 0:02:10.4]} 12. Bxc3 {[%clk 0:02:54.5]}
12... Bf6 {[%clk 0:02:10]} 13. Nxc6 {[%clk 0:02:51.6]} 13... Bxc6 {[%clk
0:02:10.9]} 14. Qxd8 {[%clk 0:02:50.8]} 14... Rfxd8 {[%clk 0:02:11.8]} 15. Bxf6
{[%clk 0:02:50.6]} 15... gxf6 {[%clk 0:02:10.8]} 16. Bxc6 {[%clk 0:02:50.2]}
16... bxc6 {[%clk 0:02:10.3]} 17. Rfd1 {[%clk 0:02:43.1]} 17... Kf8 {[%clk
0:02:09.1]} 18. Kf1 {[%clk 0:02:39.9]} 18... Ke7 {[%clk 0:02:08.3]} 19. e4
{[%clk 0:02:39.1]} 19... a5 {[%clk 0:01:57.5]} 20. Ke2 {[%clk 0:02:37.9]} 20...
Rdb8 {[%clk 0:01:50.9]} 21. Rac1 {[%clk 0:02:31.5]} 21... Rb6 {[%clk 0:01:24.2]}
22. Rc4 {[%clk 0:02:30.4]} 22... a4 {[%clk 0:00:59.8]} 23. b4 {[%clk 0:02:26.3]}
23... a3 {[%clk 0:00:57.9]} 24. Rd3 {[%clk 0:02:10]} 24... Ra4 {[%clk
0:00:56.1]} 25. Rb3 {[%clk 0:02:09.4]} 25... c5 {[%clk 0:00:38.4]} 26. bxc5
{[%clk 0:01:44.5]} 26... Rxb3 {[%clk 0:00:37.4]} 27. Rxa4 {[%clk 0:01:44.3]}
27... Rb2+ {[%clk 0:00:37.7]} 28. Ke3 {[%clk 0:01:43.1]} 28... Rxa2 {[%clk
0:00:38.6]} 29. Ra7+ {[%clk 0:01:42.9]} 29... Kf8 {[%clk 0:00:34]} 30. c6 {[%clk
0:01:29.6]} 30... Rc2 {[%clk 0:00:33]} 31. c7 {[%clk 0:01:26.7]} 31... a2 {[%clk
0:00:32.2]} 32. Rxa2 {[%clk 0:01:24.6]} 32... Rxc7 {[%clk 0:00:31.3]} 33. Kf3
{[%clk 0:01:09.3]} 33... Kg7 {[%clk 0:00:29.6]} 34. h4 {[%clk 0:01:08.5]} 34...
Rc5 {[%clk 0:00:29.1]} 35. Ra7 {[%clk 0:01:06.5]} 35... h5 {[%clk 0:00:27.7]}
36. Ra3 {[%clk 0:01:05.5]} 36... f5 {[%clk 0:00:26.9]} 37. exf5 {[%clk
0:01:03.7]} 37... Rxf5+ {[%clk 0:00:27.8]} 38. Kg2 {[%clk 0:01:02.4]} 38... Kg6
{[%clk 0:00:27.5]} 39. Rd3 {[%clk 0:00:58]} 39... Ra5 {[%clk 0:00:24.9]} 40. Rf3
{[%clk 0:00:57.8]} 40... Rf5 {[%clk 0:00:18.2]} 41. Rxf5 {[%clk 0:00:49.1]}
41... Kxf5 {[%clk 0:00:17.6]} 42. Kf3 {[%clk 0:00:49.5]} 42... e5 {[%clk
0:00:17.8]} 43. Ke3 {[%clk 0:00:42.3]} 43... Kg4 {[%clk 0:00:16.3]} 44. Ke4
{[%clk 0:00:32.1]} 44... f6 {[%clk 0:00:16]} 45. Ke3 {[%clk 0:00:31.7]} 45... f5
{[%clk 0:00:15.5]} 46. Ke2 {[%clk 0:00:25]} 46... f4 {[%clk 0:00:13.6]} 47. gxf4
{[%clk 0:00:14.8]} 47... exf4 {[%clk 0:00:13.3]} 48. Kf1 {[%clk 0:00:09.5]}
48... Kxh4 {[%clk 0:00:11.8]} 49. Kg2 {[%clk 0:00:08.9]} 49... Kg4 {[%clk
0:00:11.6]} 50. f3+ {[%clk 0:00:08.4]} 50... Kf5 {[%clk 0:00:11.5]} 51. Kh3
{[%clk 0:00:05.8]} 51... Kg5 {[%clk 0:00:05.2]} 52. Kg2 {[%clk 0:00:04.8]} 52...
Kg6 {[%clk 0:00:05]} 53. Kh3 {[%clk 0:00:04.5]} 53... Kg5 {[%clk 0:00:05.1]} 54.
Kg2 {[%clk 0:00:04.8]} 54... Kh6 {[%clk 0:00:05.1]} 55. Kh3 {[%clk 0:00:04.9]}
55... Kg6 {[%clk 0:00:05.6]} 56. Kh4 {[%clk 0:00:04.5]} 56... Kh6 {[%clk
0:00:06]} 57. Kh3 {[%clk 0:00:05.1]} 57... Kh7 {[%clk 0:00:06.4]} 58. Kh4 {[%clk
0:00:05.4]} 58... Kg6 {[%clk 0:00:06.9]} 59. Kh3 {[%clk 0:00:05.6]} 59... Kg5
{[%clk 0:00:07.5]} 1/2-1/2

[Event "*** SCC Grand Prix: Titled Tuesday Blitz"]
[Site "Chess.com"]
[Date "2020.08.11"]
[Round "8"]
[White "gagtemp"]
[Black "Sacbutt"]
[Result "0-1"]
[WhiteElo "1951"]
[BlackElo "2178"]
[TimeControl "180+1"]
[EndTime "11:35:09 PDT"]
[Termination "Sacbutt won by resignation"]

1. e4 {[%clk 0:03:00.9]} 1... c6 {[%clk 0:00:55.5]} 2. d4 {[%clk 0:02:58.5]}
2... d5 {[%clk 0:00:54.8]} 3. exd5 {[%clk 0:02:57.3]} 3... cxd5 {[%clk
0:00:51.7]} 4. c4 {[%clk 0:02:56.8]} 4... Nf6 {[%clk 0:00:52]} 5. Nc3 {[%clk
0:02:56.8]} 5... e6 {[%clk 0:00:51.7]} 6. Bg5 {[%clk 0:02:56.4]} 6... Be7 {[%clk
0:00:52.1]} 7. Nf3 {[%clk 0:02:56.5]} 7... O-O {[%clk 0:00:52.4]} 8. Bd3 {[%clk
0:02:56.6]} 8... Nbd7 {[%clk 0:00:52]} 9. O-O {[%clk 0:02:56.5]} 9... h6 {[%clk
0:00:52]} 10. Bh4 {[%clk 0:02:56]} 10... b6 {[%clk 0:00:51]} 11. a3 {[%clk
0:02:54.5]} 11... Bb7 {[%clk 0:00:51]} 12. Qe2 {[%clk 0:02:47.4]} 12... dxc4
{[%clk 0:00:50.9]} 13. Bxc4 {[%clk 0:02:46.3]} 13... Re8 {[%clk 0:00:47.6]} 14.
Ne5 {[%clk 0:02:42.8]} 14... Nd5 {[%clk 0:00:43]} 15. Bg3 {[%clk 0:02:33.6]}
15... Nxe5 {[%clk 0:00:37.7]} 16. dxe5 {[%clk 0:02:29.5]} 16... Nxc3 {[%clk
0:00:37.1]} 17. bxc3 {[%clk 0:02:28.2]} 17... Rc8 {[%clk 0:00:36.7]} 18. Bb5
{[%clk 0:02:11.9]} 18... Qd5 {[%clk 0:00:32]} 19. f3 {[%clk 0:02:01.9]} 19...
Red8 {[%clk 0:00:29.1]} 20. Rfd1 {[%clk 0:01:57.9]} 20... Qc5+ {[%clk
0:00:28.5]} 21. Bf2 {[%clk 0:01:46.3]} 21... Qxc3 {[%clk 0:00:28.5]} 22. a4
{[%clk 0:01:36.3]} 22... Bc5 {[%clk 0:00:25.2]} 23. Bxc5 {[%clk 0:01:29.6]}
23... Qxc5+ {[%clk 0:00:24.7]} 24. Kh1 {[%clk 0:01:26]} 24... Bc6 {[%clk
0:00:24]} 25. Bd3 {[%clk 0:01:22.7]} 25... Rc7 {[%clk 0:00:17.1]} 26. Rac1
{[%clk 0:01:12.4]} 26... Qe7 {[%clk 0:00:14.7]} 27. Bb5 {[%clk 0:01:03.5]} 27...
Rxd1+ {[%clk 0:00:12]} 28. Qxd1 {[%clk 0:01:00.4]} 28... Bd5 {[%clk 0:00:11.3]}
29. Rb1 {[%clk 0:00:55.2]} 29... Rc5 {[%clk 0:00:12]} 30. h3 {[%clk 0:00:47.9]}
30... Qc7 {[%clk 0:00:11.9]} 31. Bd3 {[%clk 0:00:47.1]} 31... g6 {[%clk
0:00:11.4]} 32. Qe1 {[%clk 0:00:44.2]} 32... Kg7 {[%clk 0:00:11.3]} 33. Qh4
{[%clk 0:00:40.4]} 33... Rc1+ {[%clk 0:00:11.3]} 34. Kh2 {[%clk 0:00:35.4]}
34... Rxb1 {[%clk 0:00:11]} 35. Bxb1 {[%clk 0:00:34.9]} 35... Qxe5+ {[%clk
0:00:09.2]} 36. Qg3 {[%clk 0:00:27.7]} 36... Qxg3+ {[%clk 0:00:08.8]} 37. Kxg3
{[%clk 0:00:27.9]} 37... Kf6 {[%clk 0:00:09.7]} 38. Bc2 {[%clk 0:00:26.8]} 38...
g5 {[%clk 0:00:09.8]} 39. Kf2 {[%clk 0:00:26.2]} 39... Ke5 {[%clk 0:00:09.2]}
40. Ke3 {[%clk 0:00:26.2]} 40... f5 {[%clk 0:00:09.3]} 41. g4 {[%clk 0:00:24.9]}
41... f4+ {[%clk 0:00:09.3]} 42. Ke2 {[%clk 0:00:24.6]} 42... Kd4 {[%clk
0:00:08.8]} 43. Bd1 {[%clk 0:00:23]} 43... Bc4+ {[%clk 0:00:08.8]} 44. Kd2
{[%clk 0:00:22.9]} 44... e5 {[%clk 0:00:08.9]} 45. Kc2 {[%clk 0:00:22]} 45... a6
{[%clk 0:00:08.9]} 46. Kd2 {[%clk 0:00:22.1]} 46... b5 {[%clk 0:00:09.1]} 47. a5
{[%clk 0:00:19.6]} 47... b4 {[%clk 0:00:10]} 48. Bc2 {[%clk 0:00:18.5]} 48...
Bd5 {[%clk 0:00:08.7]} 49. Ke2 {[%clk 0:00:17]} 49... b3 {[%clk 0:00:07.6]} 50.
Bb1 {[%clk 0:00:17]} 50... Bc4+ {[%clk 0:00:07.6]} 51. Kf2 {[%clk 0:00:16.5]}
51... Bd3 {[%clk 0:00:07.4]} 52. Ke1 {[%clk 0:00:14.2]} 0-1

[Event "*** SCC Grand Prix: Titled Tuesday Blitz"]
[Site "Chess.com"]
[Date "2020.08.11"]
[Round "8"]
[White "Xeniya2005"]
[Black "Noam_Vitenberg"]
[Result "0-1"]
[WhiteElo "2365"]
[BlackElo "2508"]
[TimeControl "180+1"]
[EndTime "11:35:13 PDT"]
[Termination "Noam_Vitenberg won on time"]

1. e4 {[%clk 0:03:00.9]} 1... e5 {[%clk 0:02:59.2]} 2. Nf3 {[%clk 0:03:00.4]}
2... Nc6 {[%clk 0:02:58.9]} 3. Nc3 {[%clk 0:03:00.7]} 3... Nf6 {[%clk
0:02:58.5]} 4. Bb5 {[%clk 0:03:00]} 4... Bd6 {[%clk 0:02:57.3]} 5. d3 {[%clk
0:02:58.7]} 5... a6 {[%clk 0:02:57]} 6. Bc4 {[%clk 0:02:57.9]} 6... b5 {[%clk
0:02:55.6]} 7. Bb3 {[%clk 0:02:56.9]} 7... h6 {[%clk 0:02:53.3]} 8. a3 {[%clk
0:02:55.9]} 8... O-O {[%clk 0:02:52.4]} 9. g4 {[%clk 0:02:54.8]} 9... Nh7 {[%clk
0:02:32.5]} 10. h4 {[%clk 0:02:47.7]} 10... Nd4 {[%clk 0:02:20.7]} 11. Ba2
{[%clk 0:02:18.3]} 11... Qf6 {[%clk 0:01:32]} 12. Nxd4 {[%clk 0:02:02]} 12...
exd4 {[%clk 0:01:32.9]} 13. Nd5 {[%clk 0:02:01.2]} 13... Qe5 {[%clk 0:01:13.1]}
14. g5 {[%clk 0:01:43.7]} 14... Qe8 {[%clk 0:00:41.3]} 15. g6 {[%clk 0:01:38]}
15... c6 {[%clk 0:00:25.5]} 16. gxh7+ {[%clk 0:01:36.1]} 16... Kxh7 {[%clk
0:00:26.4]} 17. Nf4 {[%clk 0:01:33.8]} 17... f5 {[%clk 0:00:26.6]} 18. Rg1
{[%clk 0:00:39.5]} 18... fxe4 {[%clk 0:00:25.3]} 19. Qg4 {[%clk 0:00:38.1]}
19... exd3+ {[%clk 0:00:18.5]} 20. Kf1 {[%clk 0:00:36.5]} 20... g5 {[%clk
0:00:08.5]} 21. hxg5 {[%clk 0:00:34.7]} 21... Bxf4 {[%clk 0:00:07.9]} 22. g6+
{[%clk 0:00:32.8]} 22... Kg7 {[%clk 0:00:05.9]} 23. Bxf4 {[%clk 0:00:32]} 23...
Qe2+ {[%clk 0:00:06]} 24. Qxe2 {[%clk 0:00:28.6]} 24... dxe2+ {[%clk 0:00:06.9]}
25. Kxe2 {[%clk 0:00:29.2]} 25... Rxf4 {[%clk 0:00:07.8]} 26. Rae1 {[%clk
0:00:27.9]} 26... d5 {[%clk 0:00:08]} 27. Kf1 {[%clk 0:00:27.4]} 27... Ra7
{[%clk 0:00:07]} 28. Rg3 {[%clk 0:00:24.7]} 28... Bf5 {[%clk 0:00:06.9]} 29. Re8
{[%clk 0:00:19]} 29... Bxc2 {[%clk 0:00:04.5]} 30. Rc8 {[%clk 0:00:18.3]} 30...
d3 {[%clk 0:00:03.3]} 31. Ke1 {[%clk 0:00:17.3]} 31... Re4+ {[%clk 0:00:03.1]}
32. Re3 {[%clk 0:00:17]} 32... Rxe3+ {[%clk 0:00:03.3]} 33. fxe3 {[%clk
0:00:17.9]} 33... d2+ {[%clk 0:00:02.7]} 34. Kxd2 {[%clk 0:00:17.5]} 34... Bxg6
{[%clk 0:00:03.6]} 35. Rxc6 {[%clk 0:00:17.5]} 35... Be4 {[%clk 0:00:04.5]} 36.
Rc1 {[%clk 0:00:15.6]} 36... Rf7 {[%clk 0:00:04.6]} 37. Rg1+ {[%clk 0:00:15]}
37... Kh7 {[%clk 0:00:05.1]} 38. Ke2 {[%clk 0:00:15]} 38... Re7 {[%clk
0:00:04.8]} 39. Rg4 {[%clk 0:00:13.2]} 39... Rc7 {[%clk 0:00:05.1]} 40. Bb3
{[%clk 0:00:11.5]} 40... a5 {[%clk 0:00:04.5]} 41. Rh4 {[%clk 0:00:10.4]} 41...
a4 {[%clk 0:00:04.7]} 42. Bd1 {[%clk 0:00:10.4]} 42... Rc1 {[%clk 0:00:04.8]}
43. Kd2 {[%clk 0:00:09.8]} 43... Rb1 {[%clk 0:00:03.6]} 44. Rh5 {[%clk
0:00:04.8]} 44... Rxb2+ {[%clk 0:00:03.9]} 45. Kc3 {[%clk 0:00:04.8]} 45... Rb1
{[%clk 0:00:04.1]} 46. Be2 {[%clk 0:00:04.6]} 46... Rc1+ {[%clk 0:00:04.2]} 47.
Kd4 {[%clk 0:00:04.5]} 47... Rg1 {[%clk 0:00:05.1]} 48. Bxb5 {[%clk 0:00:03.2]}
48... Rd1+ {[%clk 0:00:04.7]} 49. Ke5 {[%clk 0:00:03.2]} 49... Ra1 {[%clk
0:00:04.5]} 50. Bxa4 {[%clk 0:00:02.7]} 50... Rxa3 {[%clk 0:00:05]} 51. Bd7
{[%clk 0:00:01.6]} 51... Rxe3 {[%clk 0:00:05.4]} 52. Kd4 {[%clk 0:00:01.8]}
52... Re1 {[%clk 0:00:05.4]} 53. Be8 {[%clk 0:00:01.2]} 53... Rd1+ {[%clk
0:00:05.5]} 0-1

[Event "*** SCC Grand Prix: Titled Tuesday Blitz"]
[Site "Chess.com"]
[Date "2020.08.11"]
[Round "8"]
[White "Unknown_IM"]
[Black "Roza_Idrisova"]
[Result "1-0"]
[WhiteElo "2375"]
[BlackElo "2201"]
[TimeControl "180+1"]
[EndTime "11:35:15 PDT"]
[Termination "Unknown_IM won on time"]

1. Nf3 {[%clk 0:03:00.9]} 1... d5 {[%clk 0:02:58.3]} 2. c4 {[%clk 0:03:00.4]}
2... c6 {[%clk 0:02:58.1]} 3. e3 {[%clk 0:03:00.6]} 3... Nf6 {[%clk 0:02:57.1]}
4. Nc3 {[%clk 0:03:01.1]} 4... a6 {[%clk 0:02:56.4]} 5. cxd5 {[%clk 0:03:00.6]}
5... cxd5 {[%clk 0:02:56]} 6. d4 {[%clk 0:03:01.2]} 6... Nc6 {[%clk 0:02:56]} 7.
Bd3 {[%clk 0:03:01.6]} 7... Bg4 {[%clk 0:02:55.5]} 8. O-O {[%clk 0:03:01.6]}
8... e6 {[%clk 0:02:55.7]} 9. h3 {[%clk 0:03:00.6]} 9... Bh5 {[%clk 0:02:55.4]}
10. Be2 {[%clk 0:02:59.4]} 10... Be7 {[%clk 0:02:55.2]} 11. Qb3 {[%clk
0:02:58.8]} 11... Rb8 {[%clk 0:02:52.2]} 12. Bd2 {[%clk 0:02:55.8]} 12... O-O
{[%clk 0:02:51.8]} 13. Rac1 {[%clk 0:02:55.2]} 13... Na5 {[%clk 0:02:48.1]} 14.
Qd1 {[%clk 0:02:54.5]} 14... b5 {[%clk 0:02:46.6]} 15. b3 {[%clk 0:02:51.6]}
15... Rc8 {[%clk 0:02:41.7]} 16. Ne5 {[%clk 0:02:44.2]} 16... Bxe2 {[%clk
0:02:37.1]} 17. Qxe2 {[%clk 0:02:45.1]} 17... Nc6 {[%clk 0:02:32.4]} 18. Nd3
{[%clk 0:02:32.4]} 18... Qb6 {[%clk 0:02:26.9]} 19. Qf3 {[%clk 0:02:28.6]} 19...
h6 {[%clk 0:02:25.4]} 20. Ne2 {[%clk 0:02:19.8]} 20... Ne4 {[%clk 0:02:21.7]}
21. Be1 {[%clk 0:02:12.7]} 21... Ba3 {[%clk 0:02:16.5]} 22. Rd1 {[%clk
0:02:09.5]} 22... Rc7 {[%clk 0:01:52]} 23. Ng3 {[%clk 0:02:02.2]} 23... f5
{[%clk 0:01:43.7]} 24. Nf4 {[%clk 0:02:01.7]} 24... Ne7 {[%clk 0:01:36.6]} 25.
Nd3 {[%clk 0:01:43.4]} 25... Ng6 {[%clk 0:01:22.4]} 26. Nh5 {[%clk 0:01:36.6]}
26... Rfc8 {[%clk 0:01:12.4]} 27. Nhf4 {[%clk 0:01:35.6]} 27... Nxf4 {[%clk
0:01:06]} 28. Nxf4 {[%clk 0:01:36.5]} 28... Qd6 {[%clk 0:01:04.6]} 29. Qh5
{[%clk 0:01:31.9]} 29... Qe7 {[%clk 0:00:52.6]} 30. Qg6 {[%clk 0:01:21.1]} 30...
Rc6 {[%clk 0:00:49.1]} 31. f3 {[%clk 0:01:13.8]} 31... Nf6 {[%clk 0:00:46.5]}
32. Bh4 {[%clk 0:01:12.6]} 32... Qf7 {[%clk 0:00:45.4]} 33. Qxf7+ {[%clk
0:00:21.8]} 33... Kxf7 {[%clk 0:00:45.1]} 34. Nd3 {[%clk 0:00:22.4]} 34... Bd6
{[%clk 0:00:39.3]} 35. Rc1 {[%clk 0:00:14.7]} 35... g5 {[%clk 0:00:38]} 36. Bf2
{[%clk 0:00:14]} 36... Rc2 {[%clk 0:00:31.9]} 37. Rxc2 {[%clk 0:00:12.6]} 37...
Rxc2 {[%clk 0:00:30.9]} 38. Rc1 {[%clk 0:00:13.2]} 38... Rxc1+ {[%clk
0:00:30.4]} 39. Nxc1 {[%clk 0:00:12.8]} 39... e5 {[%clk 0:00:23.7]} 40. Nd3
{[%clk 0:00:10.4]} 40... e4 {[%clk 0:00:20.7]} 41. Ne1 {[%clk 0:00:07.6]} 41...
Ke6 {[%clk 0:00:18.2]} 42. Nc2 {[%clk 0:00:07.6]} 42... Bc7 {[%clk 0:00:17.1]}
43. Kf1 {[%clk 0:00:07.9]} 43... Ba5 {[%clk 0:00:16.8]} 44. Ke2 {[%clk
0:00:08.1]} 44... Bc3 {[%clk 0:00:16]} 45. Be1 {[%clk 0:00:07.9]} 45... Bxe1
{[%clk 0:00:15.7]} 46. Kxe1 {[%clk 0:00:08.8]} 46... exf3 {[%clk 0:00:15.7]} 47.
gxf3 {[%clk 0:00:09.7]} 47... Nd7 {[%clk 0:00:13.8]} 48. Nb4 {[%clk 0:00:09.7]}
48... Nb8 {[%clk 0:00:13.6]} 49. Ke2 {[%clk 0:00:08.8]} 49... a5 {[%clk
0:00:13.6]} 50. Nd3 {[%clk 0:00:09.4]} 50... Nd7 {[%clk 0:00:11.9]} 51. Nf2
{[%clk 0:00:08.5]} 51... Nb6 {[%clk 0:00:07.9]} 52. Nd3 {[%clk 0:00:08.7]} 52...
Nd7 {[%clk 0:00:07.4]} 53. Kf2 {[%clk 0:00:09.1]} 53... Kf6 {[%clk 0:00:04.6]}
54. f4 {[%clk 0:00:08.3]} 54... Ke6 {[%clk 0:00:01.1]} 55. Kf3 {[%clk
0:00:08.1]} 1-0

[Event "*** SCC Grand Prix: Titled Tuesday Blitz"]
[Site "Chess.com"]
[Date "2020.08.11"]
[Round "8"]
[White "Angel_Hranitel_37"]
[Black "KarpovVadim"]
[Result "0-1"]
[WhiteElo "2434"]
[BlackElo "2303"]
[TimeControl "180+1"]
[EndTime "11:35:17 PDT"]
[Termination "KarpovVadim won on time"]

1. d4 {[%clk 0:03:00.9]} 1... Nf6 {[%clk 0:02:58.9]} 2. Nf3 {[%clk 0:02:59.7]}
2... e6 {[%clk 0:02:59]} 3. c4 {[%clk 0:02:59.9]} 3... d5 {[%clk 0:02:58.1]} 4.
g3 {[%clk 0:02:59.6]} 4... Be7 {[%clk 0:02:57.1]} 5. Bg2 {[%clk 0:03:00]} 5...
O-O {[%clk 0:02:57.2]} 6. O-O {[%clk 0:03:00.6]} 6... c6 {[%clk 0:02:57.1]} 7.
Qc2 {[%clk 0:02:59.5]} 7... b6 {[%clk 0:02:57.2]} 8. b3 {[%clk 0:02:58.7]} 8...
Bb7 {[%clk 0:02:57.3]} 9. Rd1 {[%clk 0:02:59.3]} 9... Na6 {[%clk 0:02:57.2]} 10.
Nc3 {[%clk 0:02:58]} 10... Rc8 {[%clk 0:02:57.3]} 11. e4 {[%clk 0:02:57.9]}
11... Qc7 {[%clk 0:02:51.3]} 12. Bf4 {[%clk 0:02:54.3]} 12... Qd8 {[%clk
0:02:50.1]} 13. Rac1 {[%clk 0:02:38.9]} 13... Nc7 {[%clk 0:02:48.2]} 14. Qb1
{[%clk 0:02:00.4]} 14... Ba3 {[%clk 0:02:47.2]} 15. Rc2 {[%clk 0:01:34.2]} 15...
Bb4 {[%clk 0:02:38.7]} 16. e5 {[%clk 0:01:31.7]} 16... Nd7 {[%clk 0:02:34]} 17.
Ng5 {[%clk 0:01:26.6]} 17... h6 {[%clk 0:02:29.2]} 18. Nh3 {[%clk 0:01:23]}
18... Qe7 {[%clk 0:02:23.9]} 19. Rcc1 {[%clk 0:01:19.6]} 19... Ba3 {[%clk
0:02:22.1]} 20. Rc2 {[%clk 0:01:19.6]} 20... Rfd8 {[%clk 0:02:20.4]} 21. g4
{[%clk 0:00:54.7]} 21... Bb4 {[%clk 0:02:11.3]} 22. g5 {[%clk 0:00:54.8]} 22...
h5 {[%clk 0:02:11.5]} 23. g6 {[%clk 0:00:54.1]} 23... fxg6 {[%clk 0:02:01]} 24.
Bg5 {[%clk 0:00:54]} 24... Qf7 {[%clk 0:02:01.1]} 25. Bxd8 {[%clk 0:00:54.3]}
25... Rxd8 {[%clk 0:02:01.3]} 26. Qc1 {[%clk 0:00:42.6]} 26... Be7 {[%clk
0:01:58.7]} 27. Qf4 {[%clk 0:00:40.8]} 27... Nf8 {[%clk 0:01:53.3]} 28. Qxf7+
{[%clk 0:00:39.8]} 28... Kxf7 {[%clk 0:01:54.2]} 29. cxd5 {[%clk 0:00:40]} 29...
Nxd5 {[%clk 0:01:50.6]} 30. Nxd5 {[%clk 0:00:28.9]} 30... exd5 {[%clk
0:01:50.5]} 31. Rd3 {[%clk 0:00:25.5]} 31... g5 {[%clk 0:01:46.4]} 32. f4 {[%clk
0:00:20.1]} 32... Ba6 {[%clk 0:01:38.3]} 33. Re3 {[%clk 0:00:18.6]} 33... g4
{[%clk 0:01:35]} 34. Nf2 {[%clk 0:00:18.8]} 34... Ne6 {[%clk 0:01:33.6]} 35.
Rxc6 {[%clk 0:00:16.7]} 35... Nxd4 {[%clk 0:01:27.9]} 36. Rc7 {[%clk 0:00:17.3]}
36... Ke6 {[%clk 0:01:18.2]} 37. Rxa7 {[%clk 0:00:16.3]} 37... Bb5 {[%clk
0:01:18.2]} 38. h3 {[%clk 0:00:13.7]} 38... Ne2+ {[%clk 0:01:11.8]} 39. Kh2
{[%clk 0:00:13.9]} 39... Nxf4 {[%clk 0:01:11.1]} 40. Rg3 {[%clk 0:00:14.7]}
40... Bh4 {[%clk 0:01:06]} 41. hxg4 {[%clk 0:00:13.1]} 41... Bxg3+ {[%clk
0:01:04]} 42. Kxg3 {[%clk 0:00:14]} 42... Ne2+ {[%clk 0:01:03.9]} 43. Kh4 {[%clk
0:00:10.5]} 43... Nf4 {[%clk 0:00:56.7]} 44. Bf3 {[%clk 0:00:08.7]} 44... hxg4
{[%clk 0:00:54.4]} 45. Bxg4+ {[%clk 0:00:06.9]} 45... Kxe5 {[%clk 0:00:53.5]}
46. Rxg7 {[%clk 0:00:07.1]} 46... Ng2+ {[%clk 0:00:49.4]} 47. Kg3 {[%clk
0:00:06.9]} 47... Ne3 {[%clk 0:00:49.5]} 48. Rg5+ {[%clk 0:00:07]} 48... Kd4
{[%clk 0:00:48.6]} 49. Rg6 {[%clk 0:00:05.5]} 49... Kc5 {[%clk 0:00:36.3]} 50.
b4+ {[%clk 0:00:04.9]} 50... Kxb4 {[%clk 0:00:35.3]} 51. Rxb6 {[%clk 0:00:05.6]}
51... Kc5 {[%clk 0:00:35.6]} 52. Rb7 {[%clk 0:00:05.3]} 52... Rg8 {[%clk
0:00:33.6]} 53. Kf4 {[%clk 0:00:04.5]} 53... Bc6 {[%clk 0:00:25.3]} 54. Rc7
{[%clk 0:00:04.3]} 54... Nxg4 {[%clk 0:00:22.6]} 55. Nxg4 {[%clk 0:00:04.1]}
55... Kd6 {[%clk 0:00:23.5]} 56. Rb7 {[%clk 0:00:03.6]} 56... Rf8+ {[%clk
0:00:23.4]} 57. Kg5 {[%clk 0:00:03.3]} 57... Bxb7 {[%clk 0:00:24]} 58. Ne3
{[%clk 0:00:03.5]} 58... Re8 {[%clk 0:00:23.5]} 59. Nf5+ {[%clk 0:00:03.6]}
59... Ke5 {[%clk 0:00:22.4]} 60. Nh6 {[%clk 0:00:01.7]} 60... Rg8+ {[%clk
0:00:23.3]} 61. Nxg8 {[%clk 0:00:01.3]} 61... d4 {[%clk 0:00:23.1]} 0-1